bitfinex/quotes_SOLUSD_20260310
["timestamp","ask_amount","ask_price","bid_price","bid_amount"]
[1773186406346,1.66242247,85.698,85.672,0.12906591]
[1773186407752,11.6684091,85.702,85.672,0.12906591]
[1773186407932,1.6430368,85.701,85.672,0.12906591]
[1773186408543,1.6430368,85.701,85.681,0.13110743]
[1773186409142,1.6430368,85.701,85.671,40.85396458]
[1773186409655,1.6430368,85.701,85.672,0.13244828]
[1773186411050,1.6430368,85.701,85.68,4.18542298]
[1773186411253,1.6430368,85.701,85.676,0.13374872]
[1773186411443,1.66448055,85.7,85.671,0.13374872]
[1773186413272,1.66448055,85.698,85.671,11.80631003]
[1773186413654,1.66448055,85.698,85.672,0.1349966]
[1773186415051,1.66448055,85.696,85.672,0.1349966]
[1773186420455,1.66448055,85.696,85.68,4.18542298]
[1773186426479,1.66448055,85.705,85.69,4.32797342]
[1773186426857,1.66448055,85.705,85.69,4.18542298]
[1773186427457,1.66448055,85.705,85.686,0.14307688]
[1773186428163,1.66448055,85.711,85.691,0.14360025]
[1773186428591,1.66448055,85.716,85.692,0.14360025]
[1773186428772,1.66448055,85.716,85.7,4.18542298]
[1773186428979,1.66448055,85.726,85.701,0.14411974]
[1773186430969,1.66448055,85.724,85.702,0.14510142]
[1773186432570,1.66448055,85.724,85.7,4.18542298]
[1773186432966,1.66448055,85.722,85.7,15.85402542]
[1773186434082,1.66448055,85.72,85.695,11.66917946]
[1773186434672,1.66448055,85.719,85.695,11.66917946]
[1773186434868,11.66575284,85.721,85.673,0.14632194]
[1773186434869,1.66448055,85.709,85.673,0.14632194]
[1773186435075,1.66448055,85.709,85.691,0.14632194]
[1773186435488,1.66448055,85.709,85.69,4.18542298]
[1773186436361,1.66448055,85.709,85.686,0.14632194]
[1773186438890,1.66448055,85.709,85.691,0.1466997]
[1773186440283,1.66448055,85.709,85.682,1.16710627]
[1773186440284,1.64961444,85.717,85.7,4.18542298]
[1773186444790,1.64961444,85.717,85.7,15.85399844]
[1773186448186,1.64961444,85.717,85.657,61.2]
[1773186448187,1.64961444,85.713,85.683,0.14755195]
[1773186448895,1.64961444,85.713,85.663,1.16736514]
[1773186449098,1.64961444,85.713,85.679,0.14763303]
[1773186449494,1.64961444,85.711,85.681,11.67119898]
[1773186449683,1.64961444,85.711,85.681,11.81883201]
[1773186449879,1.64961444,85.711,85.69,4.18542298]
[1773186450982,1.64961444,85.711,85.69,4.33323215]
[1773186451183,1.64961444,85.711,85.69,4.18542298]
[1773186452287,1.64961444,85.723,85.692,0.14788915]
[1773186452508,1.64961444,85.723,85.691,11.66983697]
[1773186453208,1.64961444,85.723,85.7,4.18542298]
[1773186453602,1.64961444,85.723,85.695,0.14796761]
[1773186455511,1.64961444,85.723,85.7,4.18542298]
[1773186455897,1.64961444,85.721,85.701,11.66847528]
[1773186457098,1.64961444,85.721,85.696,11.66915608]
[1773186458194,1.64961444,85.721,85.695,0.14796761]
[1773186458195,1.64961444,85.72,85.695,0.14796761]
[1773186458514,1.64961444,85.739,85.701,0.14835512]
[1773186458722,1.64961444,85.729,85.692,0.14835512]
[1773186459008,4.18542298,85.72,85.69,15.85532072]
[1773186459194,1.64961444,85.719,85.69,15.85532072]
[1773186459704,1.64961444,85.719,85.691,0.14842802]
[1773186464112,1.64961444,85.717,85.68,4.18542298]
[1773186464324,1.64961444,85.709,85.674,0.14875863]
[1773186464614,1.64961444,85.709,85.681,0.14875863]
[1773186466216,1.64961444,85.707,85.68,4.18429368]
[1773186466391,1.64961444,85.707,85.68,4.3331809]
[1773186466596,1.64961444,85.707,85.681,0.14888722]
[1773186470214,1.6430368,85.705,85.68,4.18429368]
[1773186473016,1.6430368,85.703,85.681,11.67119898]
[1773186474711,1.6430368,85.707,85.69,4.18429368]
[1773186474916,0.74599999,85.731,85.701,0.1494716]
[1773186474917,1.6430368,85.723,85.701,0.1494716]
[1773186475107,1.6430368,85.721,85.701,11.81794688]
[1773186475307,1.6430368,85.721,85.701,10.6427391]
[1773186475620,1.6430368,85.721,85.69,4.18429368]
[1773186476821,1.7177726,85.719,85.691,11.66983697]
[1773186479905,1.7177726,85.73,85.7,4.18429368]
[1773186480213,1.7177726,85.73,85.7,3.0091394]
[1773186480413,1.7177726,85.73,85.7,1.83400192]
[1773186480717,1.7177726,85.73,85.7,0.65888124]
[1773186480922,1.7177726,85.728,85.701,11.66847528]
[1773186481318,1.7177726,85.728,85.71,4.18429368]
[1773186481626,1.7177726,85.728,85.701,40.83966348]
[1773186481805,1.7177726,85.728,85.71,4.18429368]
[1773186482306,1.7177726,85.728,85.701,42.006511]
[1773186482520,1.7177726,85.728,85.71,4.18429368]
[1773186483124,1.7177726,85.728,85.711,11.6671139]
[1773186487510,1.7177726,85.738,85.711,11.6671139]
[1773186487929,1.7177726,85.738,85.72,4.18429368]
[1773186488124,1.7177726,85.738,85.711,11.6671139]
[1773186488824,1.7177726,85.738,85.711,40.83489866]
[1773186493834,11.66295469,85.742,85.711,40.83489866]
[1773186493835,0.2,85.75,85.731,1.59258966]
[1773186494015,11.65995743,85.764,85.744,1.52105503]
[1773186494220,11.65995743,85.764,85.75,4.18429368]
[1773186494433,11.65922419,85.769,85.75,4.18429368]
[1773186494846,11.6587563,85.773,85.76,4.18429368]
[1773186495726,1.61930653,85.783,85.761,1.52194618]
[1773186496919,11.6575543,85.782,85.761,1.52194618]
[1773186497116,1.81930653,85.78,85.761,1.52194618]
[1773186498727,1.81930653,85.78,85.762,11.66017583]
[1773186499727,13.21388588,85.779,85.761,1.52194618]
[1773186499946,1.55602091,85.778,85.761,1.52194618]
[1773186500245,13.2141577,85.777,85.761,1.52194618]
[1773186500924,1.55602091,85.776,85.76,4.18429368]
[1773186501141,1.55602091,85.776,85.75,4.18429368]
[1773186501445,1.55602091,85.776,85.743,1.52784089]
[1773186501940,1.55602091,85.776,85.75,4.18429368]
[1773186502945,1.55602091,85.774,85.75,4.18429368]
[1773186503645,1.55602091,85.769,85.741,1.52945026]
[1773186504722,1.55602091,85.769,85.75,4.18429368]
[1773186505127,1.55602091,85.768,85.751,1.53103022]
[1773186505827,11.65878165,85.773,85.761,1.5318026]
[1773186506037,11.65878165,85.773,85.76,4.18429368]
[1773186506447,11.65878165,85.773,85.756,1.5318026]
[1773186506639,1.75602091,85.78,85.761,1.5318026]
[1773186507031,13.41379398,85.78,85.761,1.5318026]
[1773186508343,1.55602091,85.779,85.761,1.5318026]
[1773186512256,1.55602091,85.779,85.76,15.84471964]
[1773186512472,1.55602091,85.777,85.756,1.53628475]
[1773186512764,1.55602091,85.777,85.723,1.16654806]
[1773186512765,1.55602091,85.769,85.73,4.18429368]
[1773186513135,4.18429368,85.76,85.724,11.66534459]
[1773186513341,4.18429368,85.76,85.714,29.16665439]
[1773186513342,1.55602091,85.749,85.713,11.66676379]
[1773186513746,1.55602091,85.749,85.714,1.53700426]
[1773186513941,1.55602091,85.749,85.72,4.18429368]
[1773186514549,1.55602091,85.747,85.714,1.53771732]
[1773186514740,1.55602091,85.747,85.712,11.66697778]
[1773186516638,1.55602091,85.747,85.713,1.53910823]
[1773186517033,1.55602091,85.745,85.72,4.18429368]
[1773186518140,29.15519895,85.748,85.721,1.54048081]
[1773186518345,1.55602091,85.747,85.72,4.18429368]
[1773186519946,1.55602091,85.745,85.72,4.18429368]
[1773186523161,1.55602091,85.745,85.721,13.20953546]
[1773186523361,1.55602091,85.745,85.722,1.54378262]
[1773186523749,1.55602091,85.743,85.722,1.54378262]
[1773186525372,1.55602091,85.741,85.72,4.18429368]
[1773186527349,1.55602091,85.739,85.721,11.66575284]
[1773186527747,1.66074193,85.729,85.686,1.64695154]
[1773186527954,1.66074193,85.699,85.643,1.64695154]
[1773186528253,4.18026108,85.66,85.641,3.2151611]
[1773186528455,4.18026108,85.7,85.651,1.73291276]
[1773186528653,4.18026108,85.71,85.67,4.18026108]
[1773186529455,11.66738615,85.709,85.671,11.67256131]
[1773186529652,11.66738615,85.709,85.681,1.73291276]
[1773186530166,11.66738615,85.709,85.69,4.18026108]
[1773186531864,0.02314236,85.714,85.69,4.18026108]
[1773186539779,0.02314236,85.714,85.686,13.40341949]
[1773186539978,0.02314236,85.714,85.687,1.73291276]
[1773186540668,0.02314236,85.714,85.69,4.18026108]
[1773186541981,0.02314236,85.714,85.691,1.73291276]
[1773186544465,0.02314236,85.714,85.693,1.73291276]
[1773186544872,0.07723201,85.721,85.693,1.73291276]
[1773186545167,11.66520851,85.725,85.701,1.73291276]
[1773186547478,0.07723201,85.732,85.701,1.73291276]
[1773186547479,0.07723201,85.732,85.71,4.18026108]
[1773186551377,6.09294176,85.763,85.72,4.18026108]
[1773186551378,0.09954027,85.753,85.72,4.18026108]
[1773186551685,0.09954027,85.759,85.74,4.18026108]
[1773186552996,0.09954027,85.759,85.736,1.73291276]
[1773186553500,0.10661932,85.775,85.736,1.73291276]
[1773186554579,0.11010791,85.771,85.736,1.73291276]
[1773186556093,0.11010791,85.771,85.74,4.18026108]
[1773186556278,0.11010791,85.771,85.741,1.73291276]
[1773186556691,29.14602156,85.775,85.741,1.73291276]
[1773186556901,1.63864088,85.77,85.72,4.18026108]
[1773186557079,1.63864088,85.77,85.694,3.69383402]
[1773186557080,1.63864088,85.769,85.703,11.66820298]
[1773186557280,1.63864088,85.759,85.72,4.18026108]
[1773186558792,1.63864088,85.757,85.721,1.70820479]
[1773186563297,40.81347077,85.756,85.721,1.70820479]
[1773186563503,1.63120906,85.755,85.721,1.70820479]
[1773186564702,1.63120906,85.749,85.711,1.64597763]
[1773186565400,4.18026108,85.75,85.705,1.64597763]
[1773186565401,1.63120906,85.747,85.705,1.64597763]
[1773186566809,40.81727853,85.748,85.692,1.64597763]
[1773186566810,1.63120906,85.729,85.692,1.64597763]
[1773186567388,1.63120906,85.727,85.692,1.64597763]
[1773186569393,1.63120906,85.725,85.692,1.64597763]
[1773186570208,1.63120906,85.723,85.692,1.64597763]
[1773186572317,1.63120906,85.717,85.692,1.64597763]
[1773186572891,11.66616113,85.718,85.692,1.64597763]
[1773186573111,11.66616113,85.718,85.701,1.64597763]
[1773186573412,11.66616113,85.718,85.68,4.18026108]
[1773186573413,13.29737019,85.718,85.68,4.18026108]
[1773186573598,42.46277302,85.718,85.69,4.18026108]
[1773186574196,40.83156396,85.718,85.69,4.18026108]
[1773186574399,1.63120906,85.717,85.69,4.18026108]
[1773186575415,11.66643333,85.716,85.691,1.64597763]
[1773186576205,1.63120906,85.715,85.691,1.64597763]
[1773186576708,1.63120906,85.715,85.68,4.18026108]
[1773186576920,1.63120906,85.715,85.69,4.18026108]
[1773186578414,11.66670555,85.714,85.69,4.18026108]
[1773186578615,11.66670555,85.714,85.691,1.64597763]
[1773186581299,40.83346943,85.714,85.691,1.64597763]
[1773186581507,42.46467849,85.714,85.691,1.64597763]
[1773186582414,40.83346943,85.714,85.691,1.64597763]
[1773186582619,1.63120906,85.713,85.691,1.64597763]
[1773186583921,11.66697778,85.712,85.691,1.64597763]
[1773186584121,11.66697778,85.712,85.68,4.18026108]
[1773186584298,11.66697778,85.712,85.69,4.18026108]
[1773186584716,1.63120906,85.729,85.7,4.18026108]
[1773186586103,40.82680103,85.728,85.701,0.53040664]
[1773186586318,1.63120906,85.727,85.701,0.53040664]
[1773186587698,13.3800476,85.726,85.701,0.53040664]
[1773186588102,1.71497516,85.725,85.701,0.53040664]
[1773186589799,11.66534459,85.724,85.702,0.56950929]
[1773186590323,13.47901445,85.724,85.702,0.56950929]
[1773186590500,40.82870607,85.724,85.702,0.56950929]
[1773186590705,1.81366986,85.723,85.702,0.56950929]
[1773186593421,40.82870607,85.724,85.702,0.56950929]
[1773186593422,13.47928662,85.722,85.702,0.56950929]
[1773186596234,11.66561676,85.722,85.702,0.56950929]
[1773186596534,11.66497704,85.727,85.711,0.60600055]
[1773186597824,1.81366986,85.733,85.711,0.60600055]
[1773186599924,11.66425605,85.732,85.711,0.60600055]
[1773186600231,1.81366986,85.731,85.711,0.60600055]
[1773186600611,11.66425605,85.732,85.711,0.60600055]
[1773186601122,1.81366986,85.731,85.711,0.60600055]
[1773186602327,13.47819802,85.73,85.711,0.60600055]
[1773186605130,1.81366986,85.729,85.711,0.60600055]
[1773186605934,30.97430999,85.732,85.711,0.60600055]
[1773186606325,11.66330374,85.739,85.711,12.27303731]
[1773186606529,11.66330374,85.739,85.721,0.66149779]
[1773186606728,1.81366986,85.738,85.721,0.66149779]
[1773186607038,11.66357581,85.737,85.721,0.66149779]
[1773186607937,1.81366986,85.757,85.731,0.67184764]
[1773186609235,11.66099165,85.756,85.732,0.67693498]
[1773186609437,11.66099165,85.756,85.741,0.67693498]
[1773186611442,11.66044776,85.76,85.741,0.67693498]
[1773186613746,13.47316593,85.767,85.741,0.67693498]
[1773186614542,1.81366986,85.766,85.741,0.67693498]
[1773186614743,0.2,85.78,85.75,4.18237973]
[1773186614938,0.2,85.78,85.742,11.66289566]
[1773186614939,0.2,85.78,85.761,0.70361248]
[1773186615446,2.01366986,85.78,85.751,0.70361248]
[1773186616035,1.81366986,85.779,85.753,0.706986]
[1773186617131,1.81366986,85.778,85.753,0.706986]
[1773186618447,1.81366986,85.778,85.755,0.71366809]
[1773186620351,1.81366986,85.778,85.757,0.72339372]
[1773186622242,0.2,85.78,85.761,0.72967099]
[1773186625269,1.7727858,85.779,85.761,0.72967099]
[1773186628990,0.2,85.79,85.771,0.7505915]
[1773186629262,1.7727858,85.798,85.78,4.18237973]
[1773186629439,1.7727858,85.797,85.773,0.7505915]
[1773186629844,1.7727858,85.797,85.774,1.16585445]
[1773186630475,1.7727858,85.797,85.78,4.18237973]
[1773186632147,1.7727858,85.797,85.773,1.16586804]
[1773186632452,1.7727858,85.795,85.774,0.75909888]
[1773186634763,1.7727858,85.795,85.78,4.18237973]
[1773186635677,1.7727858,85.795,85.778,0.76457266]
[1773186635851,1.7727858,85.795,85.772,0.76992869]
[1773186636044,1.7727858,85.795,85.774,0.76992869]
[1773186637171,1.7727858,85.793,85.773,1.16586804]
[1773186637861,1.7727858,85.793,85.76,4.18237973]
[1773186638367,1.7727858,85.793,85.77,4.18237973]
[1773186639467,0.1,85.8,85.762,0.77773473]
[1773186639468,1.7727858,85.791,85.762,0.77773473]
[1773186642351,1.7727858,85.789,85.762,0.77773473]
[1773186642763,1.7727858,85.789,85.748,29.15487855]
[1773186642764,44.97967544,85.79,85.75,4.18237973]
[1773186642973,1.7727858,85.789,85.751,0.7876951]
[1773186643163,1.7727858,85.789,85.76,4.97007483]
[1773186643565,1.7727858,85.789,85.77,4.18237973]
[1773186643767,1.7727858,85.789,85.771,0.7876951]
[1773186644581,1.7727858,85.794,85.771,0.7876951]
[1773186645079,1.7727858,85.794,85.773,0.79252132]
[1773186645576,1.7727858,85.794,85.772,1.16588163]
[1773186647561,1.98879088,85.792,85.76,4.98188249]
[1773186647762,1.98879088,85.792,85.761,0.80179586]
[1773186648770,1.98879088,85.798,85.763,0.80406456]
[1773186648983,1.98879088,85.798,85.761,0.80406456]
[1773186649462,1.94249386,85.796,85.761,0.80406456]
[1773186650087,1.94249386,85.796,85.76,15.83583183]
[1773186650088,1.94249386,85.796,85.763,0.80848316]
[1773186650388,1.94249386,85.796,85.764,0.80848316]
[1773186650683,2.04249386,85.8,85.781,0.80848316]
[1773186651189,11.65514749,85.799,85.781,0.80848316]
[1773186651564,2.04249386,85.8,85.781,0.80848316]
[1773186651765,11.65514749,85.799,85.781,0.80848316]
[1773186652282,1.94249386,85.798,85.78,4.17545402]
[1773186652466,1.94249386,85.798,85.776,0.81282862]
[1773186652861,1.94249386,85.798,85.77,6.15630886]
[1773186653065,1.94249386,85.798,85.771,0.81494602]
[1773186653782,0.1,85.8,85.773,0.81494602]
[1773186654093,0.1,85.8,85.781,0.81706145]
[1773186654482,11.65514749,85.799,85.781,0.81706145]
[1773186654878,11.65514749,85.799,85.772,1.16588163]
[1773186654879,1.94249386,85.798,85.776,0.81916448]
[1773186655082,1.94249386,85.798,85.77,0.81916448]
[1773186655575,1.94249386,85.798,85.77,4.9946185]
[1773186655776,1.94249386,85.796,85.771,0.81916448]
[1773186656370,1.94249386,85.796,85.767,1.1659496]
[1773186656599,1.94249386,85.796,85.763,0.82120618]
[1773186657881,1.94249386,85.794,85.763,0.82120618]
[1773186659579,11.6559626,85.793,85.763,0.82120618]
[1773186659788,1.94249386,85.792,85.763,0.82120618]
[1773186662183,1.94249386,85.789,85.75,0.8330618]
[1773186662383,1.94249386,85.789,85.751,0.8330618]
[1773186664002,1.94249386,85.789,85.75,4.17545402]
[1773186664003,1.94249386,85.787,85.753,0.83497174]
[1773186666206,1.94249386,85.785,85.753,0.83497174]
[1773186667285,1.94249386,85.779,85.753,0.83497174]
[1773186668401,1.94249386,85.777,85.753,0.83497174]
[1773186668604,1.94249386,85.777,85.743,0.84417792]
[1773186668804,1.94249386,85.777,85.751,0.84417792]
[1773186668990,1.94249386,85.777,85.752,0.84595737]
[1773186669394,11.65800088,85.778,85.752,0.84595737]
[1773186670205,1.94249386,85.777,85.751,0.84771654]
[1773186670589,1.94249386,85.775,85.745,0.84771654]
[1773186670807,1.94249386,85.775,85.746,0.84771654]
[1773186671510,1.94249386,85.775,85.74,0.84946635]
[1773186671895,4.17545402,85.77,85.74,0.84946635]
[1773186672211,1.94249386,85.769,85.73,4.17545402]
[1773186672397,1.94249386,85.769,85.732,0.85119816]
[1773186673304,1.94249386,85.767,85.734,0.85289663]
[1773186673904,1.94249386,85.767,85.73,4.17545402]
[1773186674396,1.94249386,85.767,85.74,4.17545402]
[1773186674591,1.94249386,85.767,85.74,5.34177079]
[1773186674811,1.94249386,85.767,85.741,0.85426959]
[1773186674990,11.65936013,85.768,85.75,4.17545402]
[1773186675301,1.94249386,85.779,85.751,0.85562125]
[1773186675512,1.94249386,85.785,85.761,0.85562125]
[1773186676705,1.94249386,85.785,85.76,4.17545402]
[1773186677012,1.94249386,85.785,85.755,0.85694889]
[1773186678717,11.65718548,85.784,85.761,0.85956243]
[1773186679020,11.65718548,85.784,85.76,4.17545402]
[1773186679021,11.65718548,85.784,85.763,0.86084111]
[1773186680216,2.00514206,85.783,85.75,5.03878203]
[1773186680401,2.00514206,85.783,85.752,0.86332801]
[1773186681106,11.65745727,85.782,85.761,0.86456566]
[1773186681297,10.4914261,85.782,85.761,0.86456566]
[1773186686012,2.00514206,85.781,85.761,12.52475914]
[1773186686314,2.00514206,85.781,85.762,0.87049915]
[1773186687914,2.00514206,85.792,85.762,0.87279234]
[1773186688104,2.00514206,85.79,85.76,4.17545402]
[1773186689115,2.00514206,85.789,85.756,0.87391364]
[1773186689317,2.00514206,85.789,85.761,0.87391364]
[1773186690828,11.65664195,85.788,85.761,0.87391364]
[1773186691000,2.00514206,85.787,85.761,0.87391364]
[1773186691315,2.00514206,85.787,85.76,4.17545402]
[1773186692506,2.00514206,85.785,85.76,4.17545402]
[1773186694518,2.00514206,85.779,85.741,0.87932117]
[1773186695022,2.00514206,85.779,85.751,0.88035009]
[1773186695202,2.00514206,85.783,85.761,0.88035009]
[1773186698521,11.65745727,85.782,85.763,0.88341095]
[1773186699828,2.00514206,85.785,85.763,0.88341095]
[1773186701424,2.00514206,85.783,85.763,0.88341095]
[1773186704912,2.00514206,85.781,85.763,0.88341095]
[1773186707330,2.00514206,85.781,85.764,12.55184926]
[1773186708631,2.00514206,85.781,85.765,0.89374012]
[1773186711331,2.00514206,85.781,85.766,11.65963202]
[1773186714225,2.00514206,85.781,85.766,0.89971309]
[1773186720316,2.00514206,85.781,85.762,0.90443497]
[1773186720517,2.02445665,85.779,85.757,11.66073864]
[1773186720717,2.02445665,85.779,85.753,11.6613189]
[1773186721130,2.02445665,85.779,85.754,0.90519185]
[1773186721814,2.02445665,85.779,85.761,0.90594171]
[1773186722631,2.02445665,85.785,85.763,0.90594171]
[1773186724838,0.1,85.8,85.771,0.90812739]
[1773186725132,0.1,85.8,85.79,4.17607338]
[1773186725335,0.1,85.8,85.785,0.90812739]
[1773186725517,2.12445665,85.8,85.785,0.90812739]
[1773186731146,2.02445665,85.799,85.785,0.90812739]
[1773186733751,2.02445665,85.799,85.781,0.91354606]
[1773186734144,11.65528333,85.798,85.781,11.65759317]
[1773186734350,0.1,85.8,85.79,5.08895803]
[1773186735148,0.1,85.8,85.79,4.17607338]
[1773186735649,0.1,85.8,85.787,11.65677783]
[1773186736235,0.1,85.8,85.787,12.56840711]
[1773186736449,0.1,85.8,85.788,0.91162928]
[1773186736654,0.1,85.8,85.79,5.08770266]
[1773186736846,0.1,85.81,85.791,1.49346239]
[1773186737047,2.02445665,85.825,85.801,0.91098817]
[1773186737660,2.02445665,85.821,85.801,0.91098817]
[1773186737834,2.12445665,85.82,85.801,0.91098817]
[1773186739743,2.00479768,85.818,85.791,0.90916482]
[1773186739944,2.00479768,85.818,85.791,12.56539915]
[1773186741736,2.00479768,85.816,85.792,0.90797289]
[1773186742866,2.00479768,85.816,85.791,11.65623433]
[1773186742867,0.1,85.82,85.811,2.04763005]
[1773186744649,0.1,85.83,85.821,2.04763005]
[1773186746268,6.5905557,85.829,85.824,2.04763005]
[1773186746480,6.5905557,85.829,85.822,11.65202395]
[1773186747570,15.47571022,85.837,85.822,13.699654]
[1773186748143,15.47571022,85.837,85.823,2.04763005]
[1773186748344,10.48302238,85.844,85.83,6.22370343]
[1773186749644,10.48302238,85.844,85.831,2.04763005]
[1773186750244,12.48782006,85.844,85.83,4.17607338]
[1773186750451,2.00479768,85.843,85.83,4.17607338]
[1773186753659,2.00479768,85.848,85.83,4.17607338]
[1773186755363,2.00479768,85.846,85.83,4.17607338]
[1773186756567,2.00479768,85.851,85.84,4.17607338]
[1773186756864,2.10479768,85.85,85.831,2.04763005]
[1773186757869,2.10479768,85.85,85.82,4.17607338]
[1773186758170,2.10479768,85.85,85.821,2.04763005]
[1773186758349,2.10479768,85.85,85.83,4.17607338]
[1773186758550,2.10479768,85.85,85.831,11.65080215]
[1773186758962,11.64835932,85.849,85.831,11.65080215]
[1773186759151,2.00479768,85.848,85.83,4.17607338]
[1773186759463,2.00479768,85.848,85.831,11.65080215]
[1773186759874,29.21733925,85.86,85.832,2.04763005]
[1773186759875,0.1,85.86,85.832,2.04763005]
[1773186760074,0.1,85.86,85.851,2.04763005]
[1773186760452,0.1,85.86,85.85,4.17607338]
[1773186764379,2.00479768,85.863,85.85,4.17607338]
[1773186765488,0.1,85.87,85.832,2.04763005]
[1773186765489,2.00479768,85.861,85.832,2.04763005]
[1773186765776,2.00479768,85.861,85.831,11.65080215]
[1773186765777,1e-08,85.911,85.864,6.07943179]
[1773186765983,2.07067125,85.909,85.88,4.17607338]
[1773186766185,2.07067125,85.909,85.89,4.17607338]
[1773186766982,2.07067125,85.909,85.9,4.17607338]
[1773186767183,2.07067125,85.907,85.9,4.17607338]
[1773186767484,1.57067125,85.907,85.9,4.17607338]
[1773186767684,1.57067125,85.907,85.89,4.17607338]
[1773186768482,1.57067125,85.907,85.883,0.5056289]
[1773186768483,1.57067125,85.907,85.9,4.17607338]
[1773186771570,1.57067125,85.907,85.9,4.16264685]
[1773186772084,1.57067125,85.907,85.89,4.16264685]
[1773186773169,2.00143121,85.905,85.89,4.16264685]
[1773186777984,11.64063045,85.906,85.891,0.54347315]
[1773186778181,2.00143121,85.91,85.9,4.16264685]
[1773186778574,11.64022395,85.909,85.9,4.16264685]
[1773186778776,2.00143121,85.908,85.89,4.16264685]
[1773186780085,1e-08,85.911,85.88,4.16264685]
[1773186780086,2.09509841,85.906,85.88,4.16264685]
[1773186780575,2.09509841,85.906,85.881,0.2896019]
[1773186781793,1e-08,85.911,85.87,4.16264685]
[1773186781794,2.09509841,85.904,85.87,4.16264685]
[1773186782894,2.09509841,85.904,85.848,0.2898964]
[1773186782895,2.09509841,85.902,85.86,4.16264685]
[1773186783109,2.09509841,85.879,85.832,11.65058791]
[1773186783310,2.09509841,85.869,85.832,11.65058791]
[1773186785088,2.09509841,85.867,85.841,11.6494449]
[1773186785785,2.09509841,85.867,85.808,4.82477569]
[1773186785786,2.09509841,85.859,85.82,4.16264685]
[1773186785989,40.76023663,85.868,85.815,11.65288218]
[1773186785990,2.09509841,85.849,85.815,11.65288218]
[1773186786594,2.09509841,85.849,85.82,4.16264685]
[1773186786793,2.09509841,85.855,85.831,0.0208942]
[1773186787177,11.64768094,85.854,85.831,0.0208942]
[1773186787385,2.09509841,85.853,85.831,0.0208942]
[1773186789706,13.74305069,85.852,85.831,0.0208942]
[1773186789885,2.09509841,85.851,85.831,0.0208942]
[1773186791606,2.09509841,85.851,85.822,11.65196926]
[1773186791785,2.09509841,85.849,85.822,11.65196926]
[1773186792300,2.09509841,85.849,85.817,11.65261243]
[1773186792501,2.09509841,85.849,85.818,0.03483329]
[1773186792706,2.09509841,85.849,85.82,4.16264685]
[1773186793005,2.09509841,85.849,85.82,4.20017957]
[1773186793584,2.09509841,85.847,85.82,4.20017957]
[1773186794609,2.09509841,85.845,85.821,0.03954956]
[1773186797510,29.12055911,85.85,85.821,0.03954956]
[1773186797511,2.09509841,85.843,85.821,0.03954956]
[1773186799510,11.64930919,85.842,85.821,0.03954956]
[1773186799725,2.09509841,85.841,85.82,4.16264685]
[1773186800298,2.09509841,85.841,85.821,0.05301204]
[1773186806420,2.09509841,85.839,85.821,0.05301204]
[1773186808922,2.09509841,85.849,85.822,0.06714721]
[1773186809719,2.09509841,85.849,85.816,0.06882295]
[1773186810612,2.09509841,85.849,85.81,4.16264685]
[1773186810814,2.09509841,85.839,85.81,4.16264685]
[1773186811018,2.09509841,85.829,85.792,0.0721242]
[1773186811217,2.09509841,85.829,85.791,11.65623433]
[1773186811620,2.09509841,85.819,85.788,58.27684793]
[1773186812410,2.09509841,85.819,85.789,0.07374615]
[1773186812809,2.09509841,85.819,85.789,11.73025222]
[1773186813027,2.09509841,85.817,85.789,11.73025222]
[1773186815217,2.09509841,85.817,85.789,0.07374615]
[1773186815423,2.09509841,85.815,85.789,0.07374615]
[1773186815724,2.09509841,85.815,85.79,4.16264685]
[1773186816515,2.09509841,85.815,85.79,4.24269601]
[1773186817222,2.09509841,85.815,85.791,0.0815797]
[1773186817922,2.09509841,85.813,85.791,11.73781403]
[1773186819928,1.45624847,85.837,85.788,58.20472373]
[1773186819929,2.09509841,85.809,85.788,58.20472373]
[1773186821935,2.09509841,85.807,85.788,58.20472373]
[1773186822133,2.09509841,85.807,85.785,0.08894491]
[1773186824439,11.65288059,85.816,85.791,0.09179017]
[1773186824827,13.747979,85.816,85.791,0.09179017]
[1773186825034,2.09509841,85.815,85.791,0.09179017]
[1773186825731,2.09509841,85.815,85.781,11.65759317]
[1773186825732,2.09509841,85.827,85.801,0.09319855]
[1773186826843,2.09509841,85.825,85.802,0.09457965]
[1773186827220,2.09509841,85.825,85.8,4.16264685]
[1773186827421,2.09509841,85.825,85.792,11.65599738]
[1773186827622,2.09509841,85.825,85.792,11.7532746]
[1773186828128,2.09509841,85.825,85.793,0.0986131]
[1773186829039,2.09509841,85.823,85.793,0.0986131]
[1773186830522,2.09509841,85.821,85.793,0.0986131]
[1773186832534,2.09509841,85.817,85.783,0.10506985]
[1773186833624,2.09509841,85.815,85.783,0.10506985]
[1773186835936,2.09509841,85.813,85.783,0.10506985]
[1773186837128,2.09509841,85.811,85.783,0.10506985]
[1773186838437,2.09509841,85.809,85.783,0.10506985]
[1773186839651,11.65392504,85.808,85.783,0.10506985]
[1773186839840,2.09509841,85.807,85.783,0.10506985]
[1773186840036,2.09509841,85.807,85.78,4.17349475]
[1773186840230,2.09509841,85.799,85.76,4.28806002]
[1773186840434,2.09509841,85.799,85.761,0.11456527]
[1773186841145,2.09509841,85.799,85.743,29.15673278]
[1773186841146,2.09509841,85.779,85.749,0.11568168]